[Event "Late-Titled-Tuesday-Blitz-June-04-2024"]
[Site "Chess.com"]
[Date "2024.06.04"]
[Round "4"]
[White "Road2GM3000"]
[Black "Agustin_Meza"]
[Result "1-0"]
[WhiteElo "2445"]
[BlackElo "2181"]
[TimeControl "180+1"]
[EndTime "14:38:54 PDT"]
[Termination "Road2GM3000 won by checkmate"]

1. d4 {[%clk 0:03:00.9]} 1... e6 {[%clk 0:02:55.6]} 2. c4 {[%clk 0:03:01]} 2...
d5 {[%clk 0:02:55.9]} 3. Nc3 {[%clk 0:03:01.2]} 3... Nf6 {[%clk 0:02:56.4]} 4.
cxd5 {[%clk 0:03:01.8]} 4... exd5 {[%clk 0:02:56.3]} 5. Nf3 {[%clk 0:03:02.5]}
5... Bb4 {[%clk 0:02:55.7]} 6. Bg5 {[%clk 0:03:03]} 6... h6 {[%clk 0:02:53.3]}
7. Bh4 {[%clk 0:03:03]} 7... O-O {[%clk 0:02:53.5]} 8. e3 {[%clk 0:03:03.3]}
8... c6 {[%clk 0:02:53.3]} 9. Bd3 {[%clk 0:03:03.9]} 9... Bg4 {[%clk 0:02:51.7]}
10. h3 {[%clk 0:03:02.3]} 10... Bh5 {[%clk 0:02:51.5]} 11. Qc2 {[%clk
0:03:02.9]} 11... Nbd7 {[%clk 0:02:49.5]} 12. g4 {[%clk 0:02:58.4]} 12... Bg6
{[%clk 0:02:37.7]} 13. Bxg6 {[%clk 0:02:58.5]} 13... fxg6 {[%clk 0:02:38.6]} 14.
Qxg6 {[%clk 0:02:52.1]} 14... Qa5 {[%clk 0:02:37.2]} 15. O-O {[%clk 0:02:29.7]}
15... Bxc3 {[%clk 0:02:17]} 16. bxc3 {[%clk 0:02:29.7]} 16... Ne4 {[%clk
0:02:13.8]} 17. Ne5 {[%clk 0:02:16]} 17... Nxe5 {[%clk 0:02:07.7]} 18. dxe5
{[%clk 0:02:15.8]} 18... Qxc3 {[%clk 0:02:08]} 19. e6 {[%clk 0:02:11]} 19... Qe5
{[%clk 0:02:01.3]} 20. f4 {[%clk 0:01:31.2]} 20... Qc3 {[%clk 0:01:48.3]} 21.
Rae1 {[%clk 0:01:31.1]} 21... Rae8 {[%clk 0:01:39.8]} 22. f5 {[%clk 0:01:30.6]}
22... Nf6 {[%clk 0:01:03.6]} 23. Bxf6 {[%clk 0:01:15.9]} 23... Qxf6 {[%clk
0:01:02.4]} 24. Qxf6 {[%clk 0:01:16.3]} 24... gxf6 {[%clk 0:00:58]} 25. e4
{[%clk 0:01:09.3]} 25... d4 {[%clk 0:00:50.8]} 26. e5 {[%clk 0:01:04.8]} 26...
Kg7 {[%clk 0:00:45.2]} 27. h4 {[%clk 0:00:47.2]} 27... Rg8 {[%clk 0:00:40.4]}
28. Kf2 {[%clk 0:00:26.9]} 28... fxe5 {[%clk 0:00:37.9]} 29. Rxe5 {[%clk
0:00:26.9]} 29... Kf6 {[%clk 0:00:38]} 30. Re4 {[%clk 0:00:27.6]} 30... c5
{[%clk 0:00:33.7]} 31. Kf3 {[%clk 0:00:27.8]} 31... Rd8 {[%clk 0:00:26.2]} 32.
Kf4 {[%clk 0:00:19]} 32... d3 {[%clk 0:00:20.6]} 33. e7 {[%clk 0:00:12]} 33...
Rde8 {[%clk 0:00:20.9]} 34. g5+ {[%clk 0:00:12.5]} 34... hxg5+ {[%clk
0:00:20.1]} 35. hxg5+ {[%clk 0:00:12.8]} 35... Kf7 {[%clk 0:00:20.4]} 36. g6+
{[%clk 0:00:07.8]} 36... Kg7 {[%clk 0:00:18.5]} 37. Kg5 {[%clk 0:00:06.3]} 37...
Rgf8 {[%clk 0:00:10.3]} 38. f6+ {[%clk 0:00:06.1]} 38... Rxf6 {[%clk 0:00:08.9]}
39. Rxf6 {[%clk 0:00:06.9]} 39... d2 {[%clk 0:00:09.3]} 40. Rf1 {[%clk
0:00:06.3]} 40... b5 {[%clk 0:00:07.8]} 41. Rd1 {[%clk 0:00:06.7]} 41... c4
{[%clk 0:00:06.4]} 42. Rxd2 {[%clk 0:00:07.3]} 42... a5 {[%clk 0:00:06.8]} 43.
Rd8 {[%clk 0:00:07.8]} 43... c3 {[%clk 0:00:03.7]} 44. Rxe8 {[%clk 0:00:06.9]}
44... c2 {[%clk 0:00:04.6]} 45. Rg8+ {[%clk 0:00:07.4]} 45... Kxg8 {[%clk
0:00:04.4]} 46. e8=Q+ {[%clk 0:00:08.2]} 46... Kg7 {[%clk 0:00:05.3]} 47. Qf7+
{[%clk 0:00:09]} 47... Kh8 {[%clk 0:00:05.6]} 48. Qh7# {[%clk 0:00:09.9]} 1-0

[Event "Late-Titled-Tuesday-Blitz-June-04-2024"]
[Site "Chess.com"]
[Date "2024.06.04"]
[Round "4"]
[White "dealshark"]
[Black "IlanSchnaider"]
[Result "0-1"]
[WhiteElo "2418"]
[BlackElo "2772"]
[TimeControl "180+1"]
[EndTime "14:38:55 PDT"]
[Termination "IlanSchnaider won by resignation"]

1. e4 {[%clk 0:03:00.9]} 1... e5 {[%clk 0:02:59]} 2. Nf3 {[%clk 0:03:00.9]} 2...
Nc6 {[%clk 0:02:59.5]} 3. Bc4 {[%clk 0:03:01.5]} 3... Nf6 {[%clk 0:02:59.4]} 4.
d3 {[%clk 0:03:02]} 4... Bc5 {[%clk 0:02:57.1]} 5. O-O {[%clk 0:03:02.5]} 5...
O-O {[%clk 0:02:57.4]} 6. c3 {[%clk 0:03:02.9]} 6... d6 {[%clk 0:02:57.4]} 7.
Nbd2 {[%clk 0:03:02.6]} 7... a5 {[%clk 0:02:57.9]} 8. a4 {[%clk 0:03:02.4]} 8...
h6 {[%clk 0:02:57.2]} 9. Re1 {[%clk 0:03:01.7]} 9... Ng4 {[%clk 0:02:54.8]} 10.
Re2 {[%clk 0:03:01.5]} 10... Ba7 {[%clk 0:02:54.1]} 11. h3 {[%clk 0:03:00.8]}
11... Nf6 {[%clk 0:02:54.3]} 12. Nf1 {[%clk 0:02:59.7]} 12... Be6 {[%clk
0:02:54.1]} 13. Bb3 {[%clk 0:02:54.4]} 13... Qd7 {[%clk 0:02:52]} 14. Ng3 {[%clk
0:02:46]} 14... Rae8 {[%clk 0:02:51.9]} 15. Bc2 {[%clk 0:02:38]} 15... Ne7
{[%clk 0:02:50.6]} 16. d4 {[%clk 0:02:36.6]} 16... Ng6 {[%clk 0:02:13.5]} 17. d5
{[%clk 0:02:32.6]} 17... Bxh3 {[%clk 0:02:14.1]} 18. gxh3 {[%clk 0:02:32.4]}
18... Qxh3 {[%clk 0:02:14.8]} 19. Be3 {[%clk 0:02:24.8]} 19... Nf4 {[%clk
0:02:12]} 20. Qf1 {[%clk 0:01:45.9]} 20... Nxe2+ {[%clk 0:02:09.2]} 21. Qxe2
{[%clk 0:01:43.6]} 21... Bxe3 {[%clk 0:02:06.6]} 22. Qxe3 {[%clk 0:01:40]} 22...
Qg4 {[%clk 0:01:26.7]} 23. Nh2 {[%clk 0:01:35.9]} 23... Qg6 {[%clk 0:01:17.5]}
24. Kh1 {[%clk 0:01:30.7]} 24... Ng4 {[%clk 0:00:57]} 25. Nxg4 {[%clk
0:01:28.3]} 25... Qxg4 {[%clk 0:00:57.9]} 26. Kg2 {[%clk 0:01:22.7]} 26... c6
{[%clk 0:00:46.4]} 27. dxc6 {[%clk 0:01:13.2]} 27... bxc6 {[%clk 0:00:46.4]} 28.
Rd1 {[%clk 0:01:13.5]} 28... Re6 {[%clk 0:00:34.7]} 29. Qf3 {[%clk 0:01:09.9]}
29... Qh4 {[%clk 0:00:33.8]} 30. Rh1 {[%clk 0:01:00.3]} 30... Qg5 {[%clk
0:00:31.2]} 31. Rh5 {[%clk 0:00:59.2]} 31... Qd2 {[%clk 0:00:30.6]} 32. Qd3
{[%clk 0:00:55.4]} 32... Qc1 {[%clk 0:00:28]} 33. b3 {[%clk 0:00:41.9]} 33...
Rf6 {[%clk 0:00:27.9]} 34. Rh1 {[%clk 0:00:31.5]} 34... Qf4 {[%clk 0:00:25]} 35.
Qe2 {[%clk 0:00:26.4]} 35... d5 {[%clk 0:00:21]} 36. Rd1 {[%clk 0:00:24.5]}
36... Rd8 {[%clk 0:00:19.9]} 37. Kf1 {[%clk 0:00:20.4]} 37... Qxg3 {[%clk
0:00:19.7]} 38. Rd3 {[%clk 0:00:13.4]} 38... Qh4 {[%clk 0:00:17.6]} 39. Ke1
{[%clk 0:00:12.3]} 39... Re8 {[%clk 0:00:13.5]} 40. b4 {[%clk 0:00:11.3]} 40...
axb4 {[%clk 0:00:13.5]} 41. cxb4 {[%clk 0:00:11.7]} 41... dxe4 {[%clk
0:00:13.9]} 42. Rd7 {[%clk 0:00:08.6]} 42... Qh3 {[%clk 0:00:11.7]} 43. Bxe4
{[%clk 0:00:06.4]} 43... Qxd7 {[%clk 0:00:11.6]} 44. a5 {[%clk 0:00:02.4]} 44...
Qd4 {[%clk 0:00:11.3]} 45. Kf1 {[%clk 0:00:01.7]} 45... Rxf2+ {[%clk 0:00:09.6]}
46. Qxf2 {[%clk 0:00:01]} 46... Qxe4 {[%clk 0:00:10.2]} 0-1

[Event "Late-Titled-Tuesday-Blitz-June-04-2024"]
[Site "Chess.com"]
[Date "2024.06.04"]
[Round "4"]
[White "BerlinDrawer"]
[Black "Zhigalko_Sergei"]
[Result "0-1"]
[WhiteElo "2573"]
[BlackElo "2910"]
[TimeControl "180+1"]
[EndTime "14:38:57 PDT"]
[Termination "Zhigalko_Sergei won on time"]

1. d4 {[%clk 0:03:00.9]} 1... Nf6 {[%clk 0:03:00.3]} 2. c4 {[%clk 0:03:01.2]}
2... e6 {[%clk 0:03:00.9]} 3. Nf3 {[%clk 0:03:00.8]} 3... b6 {[%clk 0:03:01.1]}
4. g3 {[%clk 0:03:00.2]} 4... Ba6 {[%clk 0:03:01.6]} 5. Qc2 {[%clk 0:02:59.6]}
5... Bb4+ {[%clk 0:03:01.8]} 6. Bd2 {[%clk 0:02:57.9]} 6... Be7 {[%clk
0:03:00.3]} 7. Bg2 {[%clk 0:02:57.4]} 7... O-O {[%clk 0:02:59.7]} 8. O-O {[%clk
0:02:56.6]} 8... c6 {[%clk 0:03:00]} 9. Bf4 {[%clk 0:02:36.6]} 9... d5 {[%clk
0:02:59.7]} 10. Nbd2 {[%clk 0:02:36.1]} 10... Nbd7 {[%clk 0:02:59.2]} 11. Rfd1
{[%clk 0:02:31.7]} 11... Nh5 {[%clk 0:02:59.1]} 12. e3 {[%clk 0:02:23.3]} 12...
g5 {[%clk 0:02:22.1]} 13. Be5 {[%clk 0:02:15.8]} 13... f6 {[%clk 0:02:17.5]} 14.
cxd5 {[%clk 0:02:14.2]} 14... cxd5 {[%clk 0:02:10.7]} 15. Bc7 {[%clk 0:02:05.2]}
15... Qe8 {[%clk 0:02:10.1]} 16. Rac1 {[%clk 0:01:55.1]} 16... Bb7 {[%clk
0:01:58.5]} 17. e4 {[%clk 0:01:43.7]} 17... Rc8 {[%clk 0:01:55.1]} 18. Qd3
{[%clk 0:01:39.8]} 18... Qg6 {[%clk 0:01:45.3]} 19. Re1 {[%clk 0:01:34.7]} 19...
Ng7 {[%clk 0:01:21.1]} 20. Qb5 {[%clk 0:01:06.4]} 20... Qe8 {[%clk 0:01:21]} 21.
exd5 {[%clk 0:01:02.7]} 21... Bxd5 {[%clk 0:01:21.9]} 22. Qa6 {[%clk 0:00:46.7]}
22... Nf5 {[%clk 0:01:06.1]} 23. a3 {[%clk 0:00:43.5]} 23... Qf7 {[%clk
0:00:41.2]} 24. h3 {[%clk 0:00:39.5]} 24... h5 {[%clk 0:00:40.7]} 25. Qd3 {[%clk
0:00:26.6]} 25... Bd6 {[%clk 0:00:19.7]} 26. Bxd6 {[%clk 0:00:25.8]} 26... Nxd6
{[%clk 0:00:20.6]} 27. b4 {[%clk 0:00:24.8]} 27... Rfe8 {[%clk 0:00:14.7]} 28.
a4 {[%clk 0:00:19.7]} 28... Nf8 {[%clk 0:00:10.1]} 29. b5 {[%clk 0:00:15.1]}
29... Qh7 {[%clk 0:00:07.9]} 30. Qa3 {[%clk 0:00:13.7]} 30... Qd7 {[%clk
0:00:07.8]} 31. Qd3 {[%clk 0:00:12.8]} 31... Kg7 {[%clk 0:00:07.5]} 32. Qa3
{[%clk 0:00:06.5]} 32... Nf5 {[%clk 0:00:07.4]} 33. Qb4 {[%clk 0:00:03.5]} 33...
Ng6 {[%clk 0:00:07.8]} 34. a5 {[%clk 0:00:03.5]} 34... Red8 {[%clk 0:00:07.6]}
35. a6 {[%clk 0:00:03.7]} 35... Rc7 {[%clk 0:00:07.7]} 36. Qb2 {[%clk
0:00:03.5]} 36... Rdc8 {[%clk 0:00:07.9]} 37. Bf1 {[%clk 0:00:03]} 37... h4
{[%clk 0:00:07]} 38. g4 {[%clk 0:00:02.8]} 38... Nd6 {[%clk 0:00:07.4]} 39. Bd3
{[%clk 0:00:03]} 39... Nf4 {[%clk 0:00:07.8]} 40. Bf1 {[%clk 0:00:02.6]} 40...
Nc4 {[%clk 0:00:07.5]} 41. Nxc4 {[%clk 0:00:02.4]} 41... Bxc4 {[%clk 0:00:08.4]}
42. Bxc4 {[%clk 0:00:02.6]} 42... Rxc4 {[%clk 0:00:09.3]} 43. Rcd1 {[%clk
0:00:03.1]} 43... Nxh3+ {[%clk 0:00:09.4]} 44. Kg2 {[%clk 0:00:03.1]} 44... Rc2
{[%clk 0:00:08.7]} 0-1

[Event "Late-Titled-Tuesday-Blitz-June-04-2024"]
[Site "Chess.com"]
[Date "2024.06.04"]
[Round "4"]
[White "IMRosen"]
[Black "jup1978"]
[Result "1-0"]
[WhiteElo "2741"]
[BlackElo "2416"]
[TimeControl "180+1"]
[EndTime "14:38:57 PDT"]
[Termination "IMRosen won by resignation"]

1. d4 {[%clk 0:02:58.3]} 1... d5 {[%clk 0:02:55]} 2. Bf4 {[%clk 0:02:56.5]} 2...
c5 {[%clk 0:02:55.4]} 3. Nc3 {[%clk 0:02:55.5]} 3... e6 {[%clk 0:02:44.2]} 4. e4
{[%clk 0:02:43]} 4... cxd4 {[%clk 0:02:39.1]} 5. Nb5 {[%clk 0:02:42.2]} 5... Na6
{[%clk 0:02:34.1]} 6. Qxd4 {[%clk 0:02:35.7]} 6... Nf6 {[%clk 0:02:26.3]} 7.
exd5 {[%clk 0:02:16.9]} 7... Nxd5 {[%clk 0:02:22.5]} 8. Bg3 {[%clk 0:02:02]}
8... Qb6 {[%clk 0:02:12.8]} 9. Nf3 {[%clk 0:01:49.1]} 9... Qxd4 {[%clk 0:02:10]}
10. Nfxd4 {[%clk 0:01:48.3]} 10... Bc5 {[%clk 0:02:08.9]} 11. c3 {[%clk
0:01:43.1]} 11... O-O {[%clk 0:02:06.1]} 12. Be2 {[%clk 0:01:42.2]} 12... Bd7
{[%clk 0:02:06]} 13. O-O {[%clk 0:01:40.5]} 13... Rfe8 {[%clk 0:01:56.5]} 14.
Rfe1 {[%clk 0:01:40.2]} 14... e5 {[%clk 0:01:55.8]} 15. Nb3 {[%clk 0:01:13.9]}
15... Bf8 {[%clk 0:01:44.2]} 16. Rad1 {[%clk 0:01:13.1]} 16... Nf6 {[%clk
0:01:36]} 17. Bh4 {[%clk 0:01:07.8]} 17... Bxb5 {[%clk 0:01:28.5]} 18. Bxb5
{[%clk 0:01:07.5]} 18... Red8 {[%clk 0:01:29.2]} 19. Na5 {[%clk 0:00:54.2]}
19... Nc5 {[%clk 0:00:49.5]} 20. f3 {[%clk 0:00:29.1]} 20... a6 {[%clk
0:00:47.2]} 21. Bc4 {[%clk 0:00:26]} 21... b6 {[%clk 0:00:41.9]} 22. Nc6 {[%clk
0:00:25.1]} 22... Rxd1 {[%clk 0:00:42]} 23. Rxd1 {[%clk 0:00:26]} 23... Rc8
{[%clk 0:00:41.2]} 24. Nxe5 {[%clk 0:00:25.1]} 24... Rc7 {[%clk 0:00:30.8]} 25.
Rd8 {[%clk 0:00:17.9]} 25... b5 {[%clk 0:00:27.7]} 26. Bb3 {[%clk 0:00:14.4]}
26... Nxb3 {[%clk 0:00:26.8]} 27. axb3 {[%clk 0:00:15.3]} 27... Ra7 {[%clk
0:00:21.3]} 28. Bxf6 {[%clk 0:00:15.4]} 28... gxf6 {[%clk 0:00:21.1]} 29. Nd7
{[%clk 0:00:16]} 29... Kg7 {[%clk 0:00:15.2]} 30. Nxf8 {[%clk 0:00:16.2]} 30...
a5 {[%clk 0:00:15.3]} 31. Nd7 {[%clk 0:00:15.7]} 31... a4 {[%clk 0:00:15.9]} 32.
bxa4 {[%clk 0:00:16.2]} 32... Rxa4 {[%clk 0:00:16.4]} 33. Rb8 {[%clk 0:00:15.8]}
33... Ra7 {[%clk 0:00:14.9]} 34. Nc5 {[%clk 0:00:15.4]} 34... Re7 {[%clk
0:00:13.9]} 35. Rxb5 {[%clk 0:00:15.3]} 35... Re2 {[%clk 0:00:14.6]} 36. Ne4
{[%clk 0:00:14.5]} 36... Rc2 {[%clk 0:00:14.6]} 37. Ng3 {[%clk 0:00:14.6]} 37...
Kg6 {[%clk 0:00:13.6]} 38. h4 {[%clk 0:00:14.9]} 38... f5 {[%clk 0:00:12.7]} 39.
Nxf5 {[%clk 0:00:13.2]} 39... h5 {[%clk 0:00:12.4]} 40. Ne3 {[%clk 0:00:12.9]}
40... Re2 {[%clk 0:00:11.6]} 41. Nf1 {[%clk 0:00:13.3]} 41... Rc2 {[%clk
0:00:11.1]} 42. Rb4 {[%clk 0:00:12.7]} 42... f6 {[%clk 0:00:10.1]} 43. c4 {[%clk
0:00:13.3]} 43... Kf5 {[%clk 0:00:10]} 44. b3 {[%clk 0:00:13.9]} 44... Ke5
{[%clk 0:00:10.3]} 45. Rb5+ {[%clk 0:00:14.3]} 45... Kf4 {[%clk 0:00:10.4]} 46.
Rxh5 {[%clk 0:00:12]} 46... f5 {[%clk 0:00:09.9]} 47. Rh8 {[%clk 0:00:12.2]}
47... Rc1 {[%clk 0:00:09.5]} 48. h5 {[%clk 0:00:10]} 48... Kg5 {[%clk
0:00:08.3]} 49. h6 {[%clk 0:00:10.4]} 49... f4 {[%clk 0:00:08.3]} 50. h7 {[%clk
0:00:10.3]} 50... Kh4 {[%clk 0:00:06.7]} 51. Rg8 {[%clk 0:00:09.6]} 51... Rxf1+
{[%clk 0:00:05.5]} 52. Kxf1 {[%clk 0:00:10.5]} 1-0

[Event "Late-Titled-Tuesday-Blitz-June-04-2024"]
[Site "Chess.com"]
[Date "2024.06.04"]
[Round "4"]
[White "egnfanclub"]
[Black "stolencandy13"]
[Result "0-1"]
[WhiteElo "2363"]
[BlackElo "2636"]
[TimeControl "180+1"]
[EndTime "14:39:01 PDT"]
[Termination "stolencandy13 won by resignation"]

1. e4 {[%clk 0:03:00.9]} 1... c6 {[%clk 0:03:00.1]} 2. d4 {[%clk 0:02:56.4]}
2... d5 {[%clk 0:03:01]} 3. exd5 {[%clk 0:02:57]} 3... cxd5 {[%clk 0:03:01.9]}
4. c4 {[%clk 0:02:57.3]} 4... Nf6 {[%clk 0:03:01.7]} 5. Nc3 {[%clk 0:02:57.7]}
5... e6 {[%clk 0:03:01.4]} 6. Nf3 {[%clk 0:02:57.8]} 6... Bb4 {[%clk 0:03:00.9]}
7. cxd5 {[%clk 0:02:55.9]} 7... Nxd5 {[%clk 0:03:00.8]} 8. Qc2 {[%clk 0:02:56]}
8... O-O {[%clk 0:02:59.8]} 9. Bd3 {[%clk 0:02:55.8]} 9... Nf6 {[%clk
0:02:52.1]} 10. Bg5 {[%clk 0:02:53.2]} 10... h6 {[%clk 0:02:51.3]} 11. h4 {[%clk
0:02:52.7]} 11... Nc6 {[%clk 0:02:42]} 12. O-O-O {[%clk 0:02:52.6]} 12... Be7
{[%clk 0:02:37.7]} 13. a3 {[%clk 0:02:36.6]} 13... Bd7 {[%clk 0:02:19.1]} 14. g4
{[%clk 0:02:21.6]} 14... Nxg4 {[%clk 0:02:15.3]} 15. Rdg1 {[%clk 0:02:12.4]}
15... f5 {[%clk 0:02:13.5]} 16. Bf4 {[%clk 0:01:50.3]} 16... Rc8 {[%clk
0:02:10.9]} 17. Kb1 {[%clk 0:01:32.1]} 17... Bf6 {[%clk 0:02:07.1]} 18. d5
{[%clk 0:01:15.6]} 18... Nd4 {[%clk 0:01:59.6]} 19. Nxd4 {[%clk 0:01:07.8]}
19... Bxd4 {[%clk 0:02:00.5]} 20. Qb3 {[%clk 0:00:49.3]} 20... e5 {[%clk
0:01:54.8]} 21. Be3 {[%clk 0:00:41.1]} 21... Qb6 {[%clk 0:01:49.6]} 22. Qxb6
{[%clk 0:00:28.9]} 22... Bxb6 {[%clk 0:01:49.2]} 23. Bxb6 {[%clk 0:00:28.3]}
23... axb6 {[%clk 0:01:50.1]} 24. Rg2 {[%clk 0:00:20.6]} 24... e4 {[%clk
0:01:44.7]} 25. Bb5 {[%clk 0:00:19.6]} 25... Rf7 {[%clk 0:01:31.2]} 26. Bxd7
{[%clk 0:00:17.1]} 26... Rxd7 {[%clk 0:01:31.3]} 27. Nxe4 {[%clk 0:00:17.6]}
27... Rxd5 {[%clk 0:01:27.4]} 28. Ng3 {[%clk 0:00:17.8]} 28... Re8 {[%clk
0:01:19.2]} 29. Nxf5 {[%clk 0:00:17.5]} 29... Rxf5 {[%clk 0:01:20.1]} 30. Rxg4
{[%clk 0:00:17.9]} 30... Rxf2 {[%clk 0:01:20.6]} 31. Rhg1 {[%clk 0:00:18.6]}
31... Re7 {[%clk 0:01:20.3]} 32. Rb4 {[%clk 0:00:19.2]} 32... Rf6 {[%clk
0:01:18.9]} 33. Rc1 {[%clk 0:00:18.9]} 33... Rfe6 {[%clk 0:01:14.8]} 34. h5
{[%clk 0:00:19]} 34... Kf7 {[%clk 0:01:13.1]} 35. Ka2 {[%clk 0:00:19.4]} 35...
Re5 {[%clk 0:01:09.3]} 36. Rxb6 {[%clk 0:00:18.1]} 36... Rxh5 {[%clk 0:01:08]}
37. Rf1+ {[%clk 0:00:18.3]} 37... Kg8 {[%clk 0:01:06.9]} 38. Rd6 {[%clk
0:00:17.9]} 38... Rhe5 {[%clk 0:01:05.5]} 39. Rd8+ {[%clk 0:00:17.7]} 39... Re8
{[%clk 0:01:05.7]} 40. Rd7 {[%clk 0:00:17.8]} 40... R5e7 {[%clk 0:01:05.4]} 41.
Rd6 {[%clk 0:00:17.4]} 41... Re6 {[%clk 0:01:03.5]} 42. Rd7 {[%clk 0:00:17.5]}
42... R8e7 {[%clk 0:01:03.7]} 43. Rd8+ {[%clk 0:00:17.8]} 43... Kh7 {[%clk
0:01:04.3]} 44. Rff8 {[%clk 0:00:17.5]} 44... g5 {[%clk 0:01:03.4]} 45. Rh8+
{[%clk 0:00:18.4]} 45... Kg6 {[%clk 0:01:03.8]} 46. Rdg8+ {[%clk 0:00:18.7]}
46... Rg7 {[%clk 0:01:03.5]} 47. Rf8 {[%clk 0:00:18.7]} 47... Rf6 {[%clk
0:01:00.7]} 48. Rxf6+ {[%clk 0:00:17.8]} 48... Kxf6 {[%clk 0:01:00.6]} 49. Rxh6+
{[%clk 0:00:18.5]} 49... Ke5 {[%clk 0:01:00.7]} 50. Kb3 {[%clk 0:00:16.9]} 50...
g4 {[%clk 0:01:00.5]} 51. Rh1 {[%clk 0:00:16.4]} 51... g3 {[%clk 0:00:57.9]} 52.
Kc3 {[%clk 0:00:16.9]} 52... Ke4 {[%clk 0:00:57.5]} 53. Rg1 {[%clk 0:00:17.6]}
53... Ke3 {[%clk 0:00:56.6]} 54. b4 {[%clk 0:00:17.5]} 54... Kf2 {[%clk
0:00:56.1]} 55. Rd1 {[%clk 0:00:17]} 55... g2 {[%clk 0:00:56]} 56. a4 {[%clk
0:00:17.6]} 56... Rc7+ {[%clk 0:00:55.1]} 57. Kb3 {[%clk 0:00:16.7]} 57... Re7
{[%clk 0:00:51.6]} 58. Rd2+ {[%clk 0:00:15.5]} 58... Re2 {[%clk 0:00:51.5]} 59.
Rd1 {[%clk 0:00:12.5]} 59... Re1 {[%clk 0:00:49.6]} 60. Rd2+ {[%clk 0:00:12.8]}
60... Re2 {[%clk 0:00:49.8]} 61. Rd1 {[%clk 0:00:13.3]} 61... g1=Q {[%clk
0:00:48.3]} 62. Rxg1 {[%clk 0:00:13.1]} 62... Kxg1 {[%clk 0:00:49.2]} 63. a5
{[%clk 0:00:13.5]} 63... Kf2 {[%clk 0:00:49.1]} 64. Kc4 {[%clk 0:00:13.9]} 64...
Ke3 {[%clk 0:00:48.4]} 65. b5 {[%clk 0:00:13.1]} 65... Ra2 {[%clk 0:00:47.5]}
66. Kb4 {[%clk 0:00:11.3]} 66... Kd4 {[%clk 0:00:46.7]} 67. a6 {[%clk
0:00:10.9]} 67... bxa6 {[%clk 0:00:46.1]} 68. b6 {[%clk 0:00:11.3]} 68... Kd5
{[%clk 0:00:43.7]} 0-1

[Event "Late-Titled-Tuesday-Blitz-June-04-2024"]
[Site "Chess.com"]
[Date "2024.06.04"]
[Round "4"]
[White "janhelmer03"]
[Black "mightysmasher"]
[Result "1-0"]
[WhiteElo "2403"]
[BlackElo "2568"]
[TimeControl "180+1"]
[EndTime "14:39:02 PDT"]
[Termination "janhelmer03 won on time"]

1. Nf3 {[%clk 0:02:57.6]} 1... d5 {[%clk 0:02:59.6]} 2. e3 {[%clk 0:02:56.8]}
2... Nf6 {[%clk 0:02:59.4]} 3. c4 {[%clk 0:02:55.1]} 3... e6 {[%clk 0:02:59.7]}
4. Nc3 {[%clk 0:02:54.5]} 4... Bd6 {[%clk 0:02:59.6]} 5. b3 {[%clk 0:02:55]}
5... O-O {[%clk 0:02:59.8]} 6. Bb2 {[%clk 0:02:55.7]} 6... c6 {[%clk 0:03:00.1]}
7. d4 {[%clk 0:02:55.6]} 7... Re8 {[%clk 0:03:00.3]} 8. Be2 {[%clk 0:02:54.1]}
8... Nbd7 {[%clk 0:03:00.4]} 9. O-O {[%clk 0:02:54.6]} 9... dxc4 {[%clk
0:02:59.1]} 10. bxc4 {[%clk 0:02:54.1]} 10... e5 {[%clk 0:02:58.7]} 11. Qc2
{[%clk 0:02:53.1]} 11... e4 {[%clk 0:02:52.2]} 12. Nd2 {[%clk 0:02:49.7]} 12...
Nf8 {[%clk 0:02:52.1]} 13. Ndxe4 {[%clk 0:02:46.7]} 13... Nxe4 {[%clk
0:02:51.6]} 14. Nxe4 {[%clk 0:02:46.7]} 14... Bf5 {[%clk 0:02:46.1]} 15. Bd3
{[%clk 0:02:26.4]} 15... Bxe4 {[%clk 0:02:30.9]} 16. Bxe4 {[%clk 0:02:27.3]}
16... Qh4 {[%clk 0:01:57]} 17. f4 {[%clk 0:02:08.7]} 17... Qe7 {[%clk
0:01:55.4]} 18. Bd3 {[%clk 0:01:59.8]} 18... Qxe3+ {[%clk 0:01:54.2]} 19. Kh1
{[%clk 0:02:00.4]} 19... Ng6 {[%clk 0:01:43.5]} 20. Rf3 {[%clk 0:01:58.3]} 20...
Qe7 {[%clk 0:01:33.8]} 21. g3 {[%clk 0:01:55.9]} 21... Rad8 {[%clk 0:01:20.9]}
22. Kg2 {[%clk 0:01:46.4]} 22... Qc7 {[%clk 0:01:00.6]} 23. f5 {[%clk
0:01:38.1]} 23... Nf8 {[%clk 0:00:58.2]} 24. Qd2 {[%clk 0:01:08.6]} 24... c5
{[%clk 0:00:36.5]} 25. f6 {[%clk 0:00:54.2]} 25... cxd4 {[%clk 0:00:23.5]} 26.
fxg7 {[%clk 0:00:46.3]} 26... Ng6 {[%clk 0:00:22.9]} 27. Raf1 {[%clk 0:00:36.7]}
27... Re7 {[%clk 0:00:14.7]} 28. Bxg6 {[%clk 0:00:29.4]} 28... fxg6 {[%clk
0:00:06.9]} 29. Rf8+ {[%clk 0:00:14.5]} 29... Kxg7 {[%clk 0:00:06.5]} 30. Bxd4+
{[%clk 0:00:12.5]} 30... Be5 {[%clk 0:00:06]} 31. Bxe5+ {[%clk 0:00:12.9]} 31...
Rxe5 {[%clk 0:00:06]} 32. R1f7+ {[%clk 0:00:11.4]} 32... Qxf7 {[%clk 0:00:03.9]}
33. Rxf7+ {[%clk 0:00:12.3]} 33... Kxf7 {[%clk 0:00:04.8]} 34. Qxd8 {[%clk
0:00:12.6]} 34... Re7 {[%clk 0:00:05.7]} 35. Qd5+ {[%clk 0:00:12.1]} 35... Kg7
{[%clk 0:00:05.5]} 36. h4 {[%clk 0:00:12.4]} 36... b6 {[%clk 0:00:05.4]} 37. h5
{[%clk 0:00:12.6]} 37... gxh5 {[%clk 0:00:05.2]} 38. Kh3 {[%clk 0:00:13.2]}
38... Rf7 {[%clk 0:00:04.5]} 39. Kh4 {[%clk 0:00:12.9]} 39... Re7 {[%clk
0:00:03.9]} 40. Kxh5 {[%clk 0:00:11.7]} 40... Rf7 {[%clk 0:00:04.4]} 41. Qg5+
{[%clk 0:00:10.8]} 41... Kf8 {[%clk 0:00:04.1]} 42. Kh6 {[%clk 0:00:11]} 42...
Ke8 {[%clk 0:00:03.8]} 43. Qg8+ {[%clk 0:00:10]} 43... Ke7 {[%clk 0:00:03.9]}
44. Qxf7+ {[%clk 0:00:08.7]} 44... Kxf7 {[%clk 0:00:03.9]} 45. Kxh7 {[%clk
0:00:09.6]} 45... Kf6 {[%clk 0:00:02.3]} 46. Kh6 {[%clk 0:00:08.9]} 46... Kf5
{[%clk 0:00:02.1]} 47. Kh5 {[%clk 0:00:09.5]} 1-0